Cogmind - Beta 13 @@@ ROGUE MODE // 2024.05.11 @ 02:45:08 Player: Minty Result: Destroyed by Y-54 Guardian with Gatling Laser Performance ------------- Evolutions (4) 2000 Regions Visited (10) 2000 Robots Destroyed (127) 635 Value Destroyed (3974) 3974 Prototype IDs (13) 260 Alien Tech Used (0) 0 Bonus (2446) 2446 TOTAL SCORE: 11315 Bonus ------- High Alert Combat Kills 288 Follower Combat Kills 315 Entered Garrisons 400 Used RIF Installer 1000 Entered DSFs 500 Friendly Fire -57 Cogmind --------- Core Integrity 0/850 Matter 261/300 Energy 100/100 System Corruption 0% Temperature Cool (18) Movement Core (50) Location -6/Garrison Parts ------- > --- POWER (1) -------- (None) > --- PROPULSION (4) --- (None) > --- UTILITY (7) ------ Relay Coupler [Cutter] (8) > --- WEAPON (3) ------- (None) > --- INVENTORY (5) ---- Hybrid Deuterium Engine Relay Coupler [Grunt] (31) Relay Coupler [Sentry] (26) Peak State ------------ > --- POWER ------------ Cooled Ion Engine > --- PROPULSION ------- Improved VTOL Module Improved VTOL Module Improved VTOL Module > --- UTILITY ---------- Advanced Weight Redist. System Improved Signal Interpreter Advanced Melee Analysis Suite Hacking Suite Relay Coupler [NC] Relay Coupler [Cutter] Relay Coupler [Hunter] > --- WEAPON ----------- High-powered Shock Rifle Gauss Cannon Missile Launcher > --- INVENTORY -------- Improved Deuterium Engine Missile Launcher Missile Launcher Improved Datajack [Rating: 51] Favorites ----------- Power Improved Ion Engine Engine Improved Ion Engine Power Core Light Nuclear Core Propulsion Improved VTOL Module Treads Light Treads Leg Aluminum Leg Wheel Armored Wheel Flight Unit Improved VTOL Module Utility Small Storage Unit Device Structural Scanner Storage Small Storage Unit Processor Signal Interpreter Hackware Relay Coupler [NC] Protection Improved Utility Shielding Weapon Improved Assault Rifle Energy Gun Spread Laser Ballistic Gun Improved Assault Rifle Ballistic Cannon Gauss Cannon Launcher Rocket Launcher Special Melee Weapon Improved Datajack Build | -11 -10 -9 -8 -8 -8 -8 -7 -7 -6 -6 ------- Run | Yrd Mat Mat Mat Gar Mat Sto Fac DSF Fac Gar Slots Evolved 8 | . . 2 2 . . . 2 . 2 . Power . | . . . . . . . . . . . Propulsion 2 | . . . 1 . . . . . 1 . Utility 5 | . . 2 . . . . 2 . 1 . Weapon 1 | . . . 1 . . . . . . . Parts Attached 112 | . 5 33 2 19 1 25 . 3 14 10 Power 14 | . . 5 . 3 . 3 . . 1 2 Engine 11 | . . 5 . 1 . 3 . . 1 1 Core 3 | . . . . 2 . . . . . 1 Reactor . | . . . . . . . . . . . Propulsion 15 | . 2 5 . 4 . 4 . . . . Treads 2 | . . . . 2 . . . . . . Leg 1 | . . . . 1 . . . . . . Wheel 6 | . 2 4 . . . . . . . . Hover . | . . . . . . . . . . . Flight 6 | . . 1 . 1 . 4 . . . . Utility 20 | . . 5 . 2 1 5 . 1 6 . Device 6 | . . 3 . 2 . . . . 1 . Storage . | . . . . . . . . . . . Processor 6 | . . 1 . . 1 2 . . 2 . Hackware 6 | . . . . . . 2 . 1 3 . Protection 2 | . . 1 . . . 1 . . . . Artifact . | . . . . . . . . . . . Weapon 63 | . 3 18 2 10 . 13 . 2 7 8 Energy Gun 20 | . . 10 1 2 . 4 . 2 1 . Energy Cannon . | . . . . . . . . . . . Ballistic Gun 16 | . 2 6 . 2 . 3 . . . 3 Ballistic Cannon 3 | . . . . . . . . . 2 1 Launcher 20 | . 1 2 1 6 . 4 . . 2 4 Special Weapon . | . . . . . . . . . . . Impact Weapon . | . . . . . . . . . . . Slashing Weapon . | . . . . . . . . . . . Piercing Weapon . | . . . . . . . . . . . Special Melee Weapon 4 | . . . . . . 2 . . 2 . Unidentified Prototypes 10 | . . 3 . . . 7 . . . . Parts Lost 47 | . 1 6 1 15 . . . 2 6 16 Power 6 | . . 1 1 1 . . . . 1 2 Propulsion 9 | . . 2 . 4 . . . . . 3 Utility 9 | . . 1 . 1 . . . . 2 5 Weapon 23 | . 1 2 . 9 . . . 2 3 6 Highest Loss Streak 10 | . 1 3 1 5 . . . 1 5 10 To Critical Strikes . | . . . . . . . . . . . Average Slot Usage (%) 82 | . 84 89 84 81 24 86 69 66 80 47 Engine 6 | . 14 10 8 . . 5 7 7 6 1 Core 1 | . . . . 4 . . . . . . Treads 1 | . . . . 7 . . . . . . Leg 1 | . 13 . . 1 . . . . . . Wheel 7 | . 14 18 18 . . . . . . . Flight 9 | . . 1 . 8 9 22 23 23 20 15 Device 7 | . . 13 9 8 . . . . 5 4 Storage 8 | . 14 11 9 9 9 8 . . . . Processor 9 | . . 11 9 8 6 13 7 7 11 7 Hackware 3 | . . . . . . 3 7 12 23 9 Protection 4 | . . 2 9 8 . 5 . . . . Energy Gun 8 | . 5 11 . 10 . 12 15 7 1 . Ballistic Gun 7 | . 20 8 18 6 . 6 . . . 1 Launcher 3 | . 2 . 3 6 . 4 . . 3 4 Naked Turns . | . . . . . . . . . . . Heaviest Build 25 | 11 13 21 20 25 5 23 14 15 22 18 Greatest Support 24 | 20 20 24 24 24 5 15 15 15 24 24 Greatest Overweight (x) 5 | . 1 3 . 5 . 4 . . . . Average Overweight (x) . | . . . . . . 1 . . . . Largest Inventory Capacity 8 | . 8 8 8 8 8 8 5 5 5 5 Average Capacity 7 | . 8 8 8 8 8 7 5 5 5 5 Most Carried 8 | . 8 8 8 8 8 8 5 5 5 5 Average Carried 7 | . 7 7 7 7 8 7 5 4 4 3 Final Capacity 8 | 8 8 8 8 8 8 5 5 5 5 5 Final Carried 8 | 6 7 8 7 8 8 5 5 5 4 3 Class Distribution -------------------- 36% | Mutant 14% | Scavenger-Tank 10% | Tank 9% | Sprinter 7% | Scavenger-Mutant 5% | Scavenger-Skirmisher 5% | Bothacker-Mutant 4% | Bothacker-Sprinter 3% | Gunner Dominant Class ---------------- Mutant | -10/Materials Mutant | -9/Materials Skirmisher | -8/Materials Scavenger-Tank | -8/Garrison Scavenger-Tank | -8/Materials Tank | -8/Storage Tank | -7/Factory Bothacker-Sprinter | -7/DSF Sprinter | -6/Factory Sprinter | -6/Garrison Resources | -11 -10 -9 -8 -8 -8 -8 -7 -7 -6 -6 ----------- Run | Yrd Mat Mat Mat Gar Mat Sto Fac DSF Fac Gar Matter Collected 2641 | 200 137 549 89 415 . 605 . 26 182 438 Remotely . | . . . . . . . . . . . Salvage Created 3641 | . 209 1122 292 556 . 825 . . 418 219 Parts 226 | . 18 78 13 35 . 46 . . 25 11 Haulers Intercepted 11 | . 1 6 . . . 4 . . . . Recyclers Shooed 2 | . . 1 . . . . . . 1 . Parts Field Recycled . | . . . . . . . . . . . Retrieved Matter . | . . . . . . . . . . . Parts Self-Destructed . | . . . . . . . . . . . Prevented . | . . . . . . . . . . . Kills | -11 -10 -9 -8 -8 -8 -8 -7 -7 -6 -6 ------- Run | Yrd Mat Mat Mat Gar Mat Sto Fac DSF Fac Gar Combat Hostiles Destroyed 79 | . 5 24 7 18 . 11 . . 6 8 Guns 38 | . 1 21 2 7 . 7 . . . . Cannons 4 | . . . . . . . . . 3 1 AOE 37 | . 4 3 5 11 . 4 . . 3 7 Classes Destroyed 13 | . 5 5 . 3 . . . . . . Worker 15 | . . 3 2 . . 6 . . 4 . Builder 7 | . . 2 . . . 1 . . 4 . Tunneler 3 | . 1 1 . . . . . . 1 . Hauler 11 | . 1 6 . . . 4 . . . . Recycler 2 | . . 1 . . . . . . 1 . Operator 4 | . 1 1 1 . . 1 . . . . Watcher 6 | . 1 2 . . . 1 . . 2 . Swarmer 27 | . . 12 . 6 . 3 . . 3 3 Grunt 30 | . 5 5 6 5 . 4 . . 3 2 Protector 1 | . . . . 1 . . . . . . Sentry 16 | . . 7 1 4 . 4 . . . . Demolisher 1 | . . . . 1 . . . . . . Hunter 4 | . . . . 1 . . . . . 3 Best Kill Streak 10 | . 5 10 9 5 . 7 . . 10 6 Combat Bots Only 10 | . 4 10 7 5 . 4 . . 3 6 Max Kills in Single Turn 4 | . 1 3 2 2 . 4 . . 3 2 Gunslinging 1 | . . . . 1 . . . . . . Exploded 3 | . 1 3 1 2 . 3 . . 1 2 Melee . | . . . . . . . . . . . Uniques/NPCs Destroyed . | . . . . . . . . . . . Combat | -11 -10 -9 -8 -8 -8 -8 -7 -7 -6 -6 -------- Run | Yrd Mat Mat Mat Gar Mat Sto Fac DSF Fac Gar Hostile Shots Fired 595 | . 16 86 27 105 2 37 . 15 58 249 Missed 207 | . 2 24 8 28 1 9 . 9 20 106 Damage Taken 5746 | . 309 823 365 1461 16 423 . 160 643 1546 Core 1693 | . 93 240 24 315 . 143 . 23 170 685 Absorbed by Shields 10 | . . . . . . . . . . 10 Redirected to Shielding 79 | . . 20 10 40 . 9 . . . . Regen/Repaired (Parts) 30 | . . 30 . . . . . . . . Core Remaining (%) 62 | 100 62 40 . . . 12 . 96 . . Volleys Fired 260 | . 22 81 15 47 . 48 . 1 22 24 Largest 3 | . 2 2 3 3 . 3 . 1 2 3 Hottest 141 | . 60 130 111 134 . 141 . 50 108 102 Shots Fired 536 | . 43 150 37 102 . 127 . 1 40 36 Gun 441 | . 35 146 31 80 . 124 . 1 13 11 Cannon 24 | . . . . . . . . . 19 5 Launcher 71 | . 8 4 6 22 . 3 . . 8 20 Special . | . . . . . . . . . . . Kinetic 224 | . 34 44 30 37 . 44 . . 19 16 Thermal 180 | . 1 55 1 43 . 80 . . . . Explosive 68 | . 8 4 6 22 . . . . 8 20 Electromagnetic 64 | . . 47 . . . 3 . 1 13 . Robot Hit Streak 13 | . 12 13 11 11 . 9 . . 6 7 Robot Miss Streak 8 | . 5 8 3 4 . 3 . 2 2 2 Penetration Max . | . . . . . . . . . . . Secondary Targets 4 | . . 1 1 2 . . . . . . Max Gunslinging Chain 1 | . . 1 1 1 . . . . . . Shots Hit Robots 321 | . 22 117 27 51 . 63 . 2 22 17 Core Hits 267 | . 21 97 18 43 . 34 . . 31 23 Critical Kills . | . . . . . . . . . . . Critical Parts Destroyed . | . . . . . . . . . . . Critical Strikes 7 | . . . . 1 . 3 . . 3 . Burn 4 | . . . . 1 . 3 . . . . Blast 3 | . . . . . . . . . 3 . Melee Attacks 12 | . . . . . . 8 . 2 2 . Impact . | . . . . . . . . . . . Slashing . | . . . . . . . . . . . Piercing . | . . . . . . . . . . . Sneak Attacks 3 | . . . . . . 2 . . 1 . Combat Hostiles . | . . . . . . . . . . . Follow-up Attacks . | . . . . . . . . . . . Damage Inflicted 9827 | . 615 2065 975 1496 . 1213 . . 1922 1541 Guns 4034 | . 183 1471 363 666 . 1009 . . 230 112 Cannons 470 | . . . . . . . . . 416 54 Explosions 5293 | . 432 594 612 800 . 204 . . 1276 1375 Melee . | . . . . . . . . . . . Ramming 30 | . . . . 30 . . . . . . Kinetic 2012 | . 171 361 345 362 . 191 . . 416 166 Thermal 2204 | . 12 591 99 304 . 848 . . 350 . Explosive 4629 | . 432 565 531 800 . . . . 926 1375 Electromagnetic 952 | . . 548 . . . 174 . . 230 . Impact . | . . . . . . . . . . . Slashing . | . . . . . . . . . . . Piercing . | . . . . . . . . . . . Highest Corruption 4 | . . 4 . 2 2 2 . . . . Average Corruption 2 | . . 4 . 1 2 2 . . . . Corruption Purged . | . . . . . . . . . . . Corruption Blocked . | . . . . . . . . . . . Effects 12 | . . 4 . . 1 7 . . . . Message Errors 3 | . . . . . . 3 . . . . Matter Fused 5 | . . 2 . . 1 2 . . . . Heat Flow Errors 2 | . . 1 . . . 1 . . . . Energy Discharges 1 | . . 1 . . . . . . . . Weapon Failures 1 | . . . . . . 1 . . . . Overload Shots . | . . . . . . . . . . . Overflow Damage 196 | . 1 . . 22 . . . . 167 6 Projectiles 77 | . . . . . . . . . 77 . Explosions 119 | . 1 . . 22 . . . . 90 6 Melee . | . . . . . . . . . . . Knockbacks 1 | . . . . . . . . . 1 . Impact . | . . . . . . . . . . . Kinetic 1 | . . . . . . . . . 1 . Secondary . | . . . . . . . . . . . Self-Inflicted Damage 480 | . 117 36 70 110 . . . . . 147 Shots 17 | . 3 1 2 3 . . . . . 8 Rammed . | . . . . . . . . . . . Targets Rammed . | . . . . . . . . . . . Kicked . | . . . . . . . . . . . Crushed . | . . . . . . . . . . . Highest Temperature 380 | . 7 316 24 90 . 380 . . 93 51 Average Temperature 89 | . 3 96 14 37 . 126 . . 27 20 Received Heat Transfer 1472 | . 108 273 162 144 . 171 . 18 207 389 Effects 5 | . . 1 . . . 4 . . . . Shutdowns 1 | . . . . . . 1 . . . . Energy Bleed 3 | . . 1 . . . 2 . . . . Interference 1 | . . . . . . 1 . . . . Siege Activations . | . . . . . . . . . . . Robots Corrupted . | . . . . . . . . . . . Combat Hostiles . | . . . . . . . . . . . Parts Fried 6 | . . 4 . . . 1 . . 1 . Impact Corruptions . | . . . . . . . . . . . Robots Melted . | . . . . . . . . . . . Combat Hostiles . | . . . . . . . . . . . Parts Melted 4 | . . . . . . 4 . . . . Heat Transferred 3763 | . 25 745 87 769 . 1887 . . 250 . Parts Sabotaged . | . . . . . . . . . . . Parts Stolen . | . . . . . . . . . . . Parts Stripped . | . . . . . . . . . . . Power Chain Reactions 2 | . . 1 . . . 1 . . . . Alert | -11 -10 -9 -8 -8 -8 -8 -7 -7 -6 -6 ------- Run | Yrd Mat Mat Mat Gar Mat Sto Fac DSF Fac Gar Peak Influence 790 | . 227 536 339 766 389 487 212 174 391 790 Initial 368 | . . 95 86 220 368 163 212 148 75 252 Average 330 | . 120 251 157 549 381 273 212 146 212 591 Maximum Alert Level 3 | . 1 2 1 3 1 2 1 . 1 3 Low Security (%) 28 | . 78 35 72 . . 24 . 100 38 . Level 1 42 | . 21 48 27 29 100 60 100 . 61 22 Level 2 17 | . . 15 . 27 . 15 . . . 49 Level 3 11 | . . . . 42 . . . . . 27 Level 4 . | . . . . . . . . . . . Level 5 . | . . . . . . . . . . . High Security . | . . . . . . . . . . . Max Security . | . . . . . . . . . . . Squads Dispatched 17 | . 1 1 3 . . 4 . 3 5 . Investigation 5 | . . 1 . . . 1 . . 3 . Extermination . | . . . . . . . . . . . Reinforcement 10 | . 1 . 2 . . 2 . 3 2 . Assault . | . . . . . . . . . . . Garrison 2 | . . . 1 . . 1 . . . . Intercept . | . . . . . . . . . . . Searches Triggered . | . . . . . . . . . . . Construction Impeded 2 | . . . . . . 1 . . 1 . Haulers Reinforced 1 | . . . . . . . . . 1 . Active Scanning Responses . | . . . . . . . . . . . Cargo Convoy Interrupts . | . . . . . . . . . . . Stealth | -11 -10 -9 -8 -8 -8 -8 -7 -7 -6 -6 --------- Run | Yrd Mat Mat Mat Gar Mat Sto Fac DSF Fac Gar Distress Signals 8 | . 2 4 . . . 2 . . . . Communications Jammed . | . . . . . . . . . . . Distress Signals . | . . . . . . . . . . . Times Spotted 150 | . 11 39 8 21 3 28 . 9 13 18 Peak Tracking Total 9 | . 5 7 2 4 1 9 . 5 5 9 Tactical Retreats 10 | . . 5 . 1 . 2 . 1 . 1 Traps | -11 -10 -9 -8 -8 -8 -8 -7 -7 -6 -6 ------- Run | Yrd Mat Mat Mat Gar Mat Sto Fac DSF Fac Gar Traps Triggered 4 | . . . . 2 . . . 1 . 1 Indirectly . | . . . . . . . . . . . Trap Hack Attempts . | . . . . . . . . . . . Triggered . | . . . . . . . . . . . Disarmed . | . . . . . . . . . . . Reprogrammed . | . . . . . . . . . . . Reused 2 | . . . . 2 . . . . . . Traps Extracted . | . . . . . . . . . . . Installed 7 | . . . . 7 . . . . . . Triggered 2 | . . . . 2 . . . . . . Most Traps Carried 2 | . . . . 2 . . . . . . Objects Rigged 3 | . . 3 . . . . . . . . Exploded 1 | . . 1 . . . . . . . . Machines | -11 -10 -9 -8 -8 -8 -8 -7 -7 -6 -6 ---------- Run | Yrd Mat Mat Mat Gar Mat Sto Fac DSF Fac Gar Machines Disabled 16 | . . 2 1 3 . 3 . . 4 3 Max in Single Turn 2 | . . 2 1 1 . 1 . . 2 1 Garrison Access 1 | . . . . . . . . . 1 . Garrison Relay 4 | . . . . 2 . . . . . 2 Machines Repaired . | . . . . . . . . . . . Machines Dismantled . | . . . . . . . . . . . Machines Sabotaged . | . . . . . . . . . . . Overloaded Fab Kills . | . . . . . . . . . . . Hacking | -11 -10 -9 -8 -8 -8 -8 -7 -7 -6 -6 --------- Run | Yrd Mat Mat Mat Gar Mat Sto Fac DSF Fac Gar Machines Accessed 37 | . 3 12 3 3 1 6 1 . 5 3 Terminals 27 | . 3 10 1 3 1 5 1 . . 3 Fabricators 2 | . . . . . . . . . 2 . Repair Stations 2 | . . 1 . . . . . . 1 . Recycling Units 1 | . . . . . . 1 . . . . Scanalyzers 2 | . . 1 1 . . . . . . . Garrison Access 3 | . . . 1 . . . . . 2 . Total Hacks 117 | . 13 40 10 8 8 17 1 . 15 5 Successful 58 | . 5 23 7 3 4 7 1 . 7 1 Failed 59 | . 8 17 3 5 4 10 . . 8 4 Catastrophic 8 | . 1 1 1 1 . 3 . . . 1 Database Lockouts . | . . . . . . . . . . . Manual 50 | . 12 22 1 1 5 9 . . . . Terminals 82 | . 13 34 1 8 8 12 1 . . 5 Fabricators 8 | . . . . . . . . . 8 . Repair Stations 8 | . . 3 . . . . . . 5 . Recycling Units 5 | . . . . . . 5 . . . . Scanalyzers 10 | . . 3 7 . . . . . . . Garrison Access 4 | . . . 2 . . . . . 2 . Terminal Hacks 23 | . 3 11 . 3 2 2 1 . . 1 Part Schematic 2 | . 2 . . . . . . . . . Prototype ID Bank 2 | . 1 1 . . . . . . . . Open Door 3 | . . . . 1 . 1 . . . 1 Open DSF 1 | . . . . . . . 1 . . . Emergency Access Points 1 | . . . . 1 . . . . . . Terminal Index 1 | . . . . . 1 . . . . . Alert Level 2 | . . 2 . . . . . . . . Unreport Threat 3 | . . 3 . . . . . . . . Locate Traps 3 | . . 2 . . 1 . . . . . Dispatch Records 1 | . . . . . . 1 . . . . Recall Investigation 1 | . . 1 . . . . . . . . Recall Reinforcements 1 | . . 1 . . . . . . . . Zone Layout 1 | . . 1 . . . . . . . . Garrison Registry 1 | . . . . 1 . . . . . . Fabricator Hacks 3 | . . . . . . . . . 3 . Load Schematic 2 | . . . . . . . . . 2 . Build 1 | . . . . . . . . . 1 . Repair Station Hacks 4 | . . 2 . . . . . . 2 . Scan Component 2 | . . 1 . . . . . . 1 . Repair 1 | . . 1 . . . . . . . . Refit 1 | . . . . . . . . . 1 . Recycling Unit Hacks 3 | . . . . . . 3 . . . . Process 1 | . . . . . . 1 . . . . Report Inventory 1 | . . . . . . 1 . . . . Retrieve Matter 1 | . . . . . . 1 . . . . Scanalyzer 8 | . . 2 6 . . . . . . . Insert Component 4 | . . 1 3 . . . . . . . Analyze 4 | . . 1 3 . . . . . . . Garrison Access Hacks 3 | . . . 1 . . . . . 2 . Unlock Access 2 | . . . 1 . . . . . 1 . Seal Access 1 | . . . . . . . . . 1 . Unauthorized Hacks 14 | . 2 8 . . 2 2 . . . . Terminals 14 | . 2 8 . . 2 2 . . . . Track 1 | . . . . . . 1 . . . . Assimilate 1 | . . 1 . . . . . . . . Botnet 7 | . 1 4 . . 1 1 . . . . Detonate 1 | . . 1 . . . . . . . . Disrupt 1 | . . 1 . . . . . . . . Operators 3 | . 1 1 . . 1 . . . . . Fabricators . | . . . . . . . . . . . Repair Stations . | . . . . . . . . . . . Recycling Units . | . . . . . . . . . . . Scanalyzers . | . . . . . . . . . . . Garrison Access . | . . . . . . . . . . . Data Cores Recovered 1 | . . 1 . . . . . . . . Used . | . . . . . . . . . . . Hacking Detections 31 | . 3 12 3 3 1 4 . . 3 2 Full Trace Events 8 | . 1 1 . 1 . 2 . . 3 . Feedback Events . | . . . . . . . . . . . Feedback Blocked . | . . . . . . . . . . . Robot Schematics Acquired . | . . . . . . . . . . . Robots Built . | . . . . . . . . . . . Authchips . | . . . . . . . . . . . Time . | . . . . . . . . . . . Total Robot Build Rating . | . . . . . . . . . . . Part Schematics Acquired 6 | . 2 1 3 . . . . . . . Parts Built 1 | . . . . . . . . . 1 . Authchips . | . . . . . . . . . . . Time 31 | . . . . . . . . . 31 . Total Part Build Rating 2 | . . . . . . . . . 2 . Parts Repaired 1 | . . 1 . . . . . . . . Time 26 | . . 26 . . . . . . . . Parts Recycled . | . . . . . . . . . . . Recycled Matter 368 | . . . . . . 368 . . . . Retrieved Matter 433 | . . . . . . 433 . . . . Retrieved Components . | . . . . . . . . . . . Parts Scanalyzed 4 | . . 1 3 . . . . . . . Part Schematics Acquired 4 | . . 1 3 . . . . . . . Parts Damaged . | . . . . . . . . . . . Bothacking | -11 -10 -9 -8 -8 -8 -8 -7 -7 -6 -6 ------------ Run | Yrd Mat Mat Mat Gar Mat Sto Fac DSF Fac Gar Used RIF Installer 2 | . . . . 1 . . . . . 1 Program Shield 1 | . . . . . . . . . . 1 Robots Hacked 7 | . . . . . . 4 . 2 1 . Non-combat 2 | . . . . . . 1 . . 1 . Combat 5 | . . . . . . 3 . 2 . . Robot Hacks Applied 8 | . . . . . . 5 . 2 1 . generate_echo 1 | . . . . . . 1 . . . . map_walls 1 | . . . . . . 1 . . . . reboot_system 2 | . . . . . . 1 . 1 . . formatsys_low 1 | . . . . . . . . . 1 . formatsys_high 3 | . . . . . . 2 . 1 . . Relay Couplers Released 15 | . . . . 7 . . . . . 8 Machine Destruction 15 | . . . . 7 . . . . . 8 Attached 5 | . . . . . . 2 . 1 2 . Fabnet Peak Effective % . | . . . . . . . . . . . Robots Rewired 3 | . . . . 2 . . . . . 1 Allies Hacked . | . . . . . . . . . . . Hacks Repelled . | . . . . . . . . . . . Allies | -11 -10 -9 -8 -8 -8 -8 -7 -7 -6 -6 -------- Run | Yrd Mat Mat Mat Gar Mat Sto Fac DSF Fac Gar Total Allies 10 | . . 1 . 2 . 2 . 1 1 3 Largest Group 3 | . . 1 1 3 . 2 . 1 1 2 Highest-Rated Group 157 | . . 10 10 55 . 32 . 22 23 157 Highest-Rated Ally 95 | . . 10 10 25 . 16 . 22 23 95 Total Orders . | . . . . . . . . . . . Ally Attacks 26 | . . . . . . 6 . 2 . 18 Total Damage 708 | . . . . . . 79 . 49 . 580 Kills 9 | . . . . . . 1 . 1 . 7 Allies Corrupted . | . . . . . . . . . . . Allies Melted . | . . . . . . . . . . . Intel | -11 -10 -9 -8 -8 -8 -8 -7 -7 -6 -6 ------- Run | Yrd Mat Mat Mat Gar Mat Sto Fac DSF Fac Gar Robot Analysis Total . | . . . . . . . . . . . Derelict Logs Recovered . | . . . . . . . . . . . Drone Launches . | . . . . . . . . . . . Drone Recoveries . | . . . . . . . . . . . Exploration | -11 -10 -9 -8 -8 -8 -8 -7 -7 -6 -6 ------------- Run | Yrd Mat Mat Mat Gar Mat Sto Fac DSF Fac Gar Turns Passed 3693 | . 256 1246 111 840 33 649 9 58 244 247 Spaces Moved 2874 | 1 190 906 68 385 74 346 30 124 426 324 Core 7 | . . . . 6 . . . . . 1 Treads 274 | . . . . 274 . . . . . . Legs 94 | 1 75 . . 18 . . . . . . Wheels 1052 | . 115 856 68 13 . . . . . . Hover . | . . . . . . . . . . . Flight 1447 | . . 50 . 74 74 346 30 124 426 323 Fastest Speed 29 | 120 80 80 90 40 40 29 29 29 29 29 Average Speed 84 | 120 95 96 90 165 40 107 29 29 29 29 Slowest Speed 320 | 120 120 250 90 300 40 320 29 29 29 50 Overloaded Moves . | . . . . . . . . . . . Propulsion Burnouts . | . . . . . . . . . . . Robots Hopped 27 | . . . . 1 2 2 . 3 16 3 Cave-ins Triggered . | . . . . . . . . . . . Exploration Rate (%) 36 | 2 30 68 14 55 11 62 1 86 13 55 Regions Visited 10 Branch Regions 1 Pre-discovered Areas . | . . . . . . . . . . . Known Exits Taken 5 | . . 1 1 . . 1 1 . 1 . Unknown Exits Taken 3 | 1 1 . . . 1 . . . . . Scrap Searched . | . . . . . . . . . . . Spaces Dug . | . . . . . . . . . . . Terrain Destroyed 365 | . 22 69 52 91 . 3 . . 53 75 Melee . | . . . . . . . . . . . Projectile 4 | . . . . 1 . . . . 3 . AOE 361 | . 22 69 52 90 . 3 . . 50 75 Terrain Rammed 1 | . . . . 1 . . . . . . Walls Destroyed 1 | . . . . 1 . . . . . . Machines Disabled . | . . . . . . . . . . . Actions | -11 -10 -9 -8 -8 -8 -8 -7 -7 -6 -6 --------- Run | Yrd Mat Mat Mat Gar Mat Sto Fac DSF Fac Gar Total 3642 | . 222 1133 85 501 74 531 30 142 489 435 Wait 217 | . . 72 . 4 . 86 . 8 31 16 Move 2816 | . 189 905 68 382 69 341 30 118 395 319 Hop 24 | . . . . 1 2 2 . 2 15 2 Pick Up 39 | . 3 14 . 12 1 2 . 3 2 2 Fast Attach 54 | . 2 18 . 7 1 14 . 2 6 4 Attach 36 | . 1 7 1 10 . 2 . 1 8 6 Detach 22 | . . 4 . 5 . 4 . . 6 3 Swap 22 | . 2 8 1 2 . 9 . . . . Drop 56 | . 3 24 . 10 1 13 . 4 1 . Fire 260 | . 22 81 15 47 . 48 . 1 22 24 Melee 12 | . . . . . . 8 . 2 2 . Ram 1 | . . . . 1 . . . . . . Kick . | . . . . . . . . . . . Crush . | . . . . . . . . . . . Escape Stasis 17 | . . . . . . . . . . 17 Rewire 59 | . . . . 13 . 2 . 1 1 42 Trap 7 | . . . . 7 . . . . . . Miscellaneous . | . . . . . . . . . . . Route ------- -11/Scrapyard -10/Materials (discovered 2 exits: *Mat / [*Min]) -9/Materials (discovered 3 exits: *Mat x2 / [*Min]) -8/Materials -8/Garrison (discovered 3 exits: *Mat x3) -8/Materials -8/Storage -7/Factory -7/DSF -6/Factory -6/Garrison (discovered 1 exit: [*Fac]) History --------- Turn | Location | Event 1 | -11/Scrapyard | Discovered new exit (range 0) 1 | -11/Scrapyard | Entered Materials 91 | -10/Materials | Discovered new exit (range 7) 194 | -10/Materials | Discovered new exit (range 16) 257 | -10/Materials | Entered another Materials area 257 | -9/Materials | Evolved 2 slots: Utility x2 400 | -9/Materials | Repaired Wheel 569 | -9/Materials | Discovered new exit (range 14) 933 | -9/Materials | Identified exit to Materials 1001 | -9/Materials | Build established: Mutant 1064 | -9/Materials | Destroyed 10 combat bots 1068 | -9/Materials | Lost 3 parts (1p2w) 1078 | -9/Materials | Discovered new exit (range 13) 1229 | -9/Materials | Core integrity fell below 50% 1235 | -9/Materials | Discovered exit to Materials (range 10) 1503 | -9/Materials | Entered another Materials area 1503 | -8/Materials | Accompanied by 1 ally 1503 | -8/Materials | Evolved 2 slots: Propulsion x1, Weapon x1 1614 | -8/Materials | Identified exit to Garrison 1614 | -8/Materials | Entered Garrison 1614 | -8/Garrison | Accompanied by 1 ally 1629 | -8/Garrison | Destroyed 7 combat bots 1662 | -8/Garrison | Lost 3 parts (1p2n) 1700 | -8/Garrison | Triggered checkpoint 1742 | -8/Garrison | Garrison Relay disabled 1835 | -8/Garrison | Discovered new exit (range 48) 1835 | -8/Garrison | Discovered new exit (range 51) 1835 | -8/Garrison | Discovered new exit (range 56) 1898 | -8/Garrison | Lost 3 allies 1922 | -8/Garrison | Lost 4 parts (1n3w) 2055 | -8/Garrison | Garrison Relay disabled 2205 | -8/Garrison | Identified exit to Materials 2399 | -8/Garrison | Build established: Scavenger-Tank 2425 | -8/Garrison | Core integrity fell below 50% 2448 | -8/Garrison | Installed Relay Interface Framework 2454 | -8/Garrison | Entered Materials 2472 | -8/Materials | Lost 5 parts (1p1u3w) 2480 | -8/Materials | Discovered new exit (range 16) 2487 | -8/Materials | Entered Storage 3068 | -8/Storage | Core integrity fell below 20% 3068 | -8/Storage | Garrison activated, responded to threat 3134 | -8/Storage | Discovered new exit (range 6) 3135 | -8/Storage | Identified exit to Factory 3136 | -8/Storage | Entered Factory 3136 | -7/Factory | Evolved 2 slots: Utility x2 3145 | -7/Factory | Identified exit to DSF 3145 | -7/Factory | Entered DSF 3163 | -7/DSF | Additional patrols routed to DSF 3199 | -7/DSF | Discovered new exit (range 16) 3202 | -7/DSF | Identified exit to Factory 3203 | -7/DSF | Entered Factory 3203 | -6/Factory | Evolved 2 slots: Propulsion x1, Utility x1 3433 | -6/Factory | Fabricated Mni. Grenade Launcher (x1) 3447 | -6/Factory | Identified exit to Garrison 3447 | -6/Factory | Entered Garrison 3469 | -6/Garrison | Garrison Relay disabled 3470 | -6/Garrison | Found embedded Infiltrators 3472 | -6/Garrison | Lost 5 parts (1p1u3w) 3479 | -6/Garrison | Triggered checkpoint 3492 | -6/Garrison | Expanded RIF knowledge: Program Shield 3543 | -6/Garrison | Triggered checkpoint 3559 | -6/Garrison | Lost 5 parts (1p3u1w) 3564 | -6/Garrison | Discovered new exit (range 12) 3567 | -6/Garrison | Triggered checkpoint 3579 | -6/Garrison | Build established: Sprinter 3607 | -6/Garrison | Core integrity fell below 50% 3652 | -6/Garrison | Core integrity fell below 20% 3681 | -6/Garrison | Lost 10 parts (1p2n2u5w) 3694 | -6/Garrison | Destroyed by Y-54 Guardian with Gatling Laser Last Messages --------------- 03658_ Field strength at 85. 03659_ Field strength at 80. 03660_ Field strength at 75. 03661_ Field strength at 70. 03662_ Field strength at 65. 03663_ Field strength at 60. 03664_ Field strength at 55. 03665_ Field strength at 50. 03666_ Field strength at 45. 03667_ Field strength at 40. 03668_ Field strength at 35. 03669_ Field strength at 30. 03670_ Field strength at 25. 03671_ Field strength at 20. 03672_ Field strength at 15. 03673_ Field strength at 10. 03674_ Stasis field depleted. 03676_ Attempting to rewire Executioner. 03688_ Imp. VTOL Module destroyed. 03688_ Attempting to rewire Executioner. Map ----- +----------------------------------------------------+ | ????????????# *[=![ !!!] [ | | ????????????#"""" ############ # | | ????????????#######??????????## ##### | | ??????????????????????????????####???# #### | | ?????????????????????????????????????# # = | | ?????????????????????????????????????#### | | ????????????????????????????????????????# | | ????????????????????????????????????????# | | ???????????????????????????##???????????### | | ??????????????????????????? #?????????????# | | ??????????????????????????# #?????????????# | | ??????????????????????????# #?????????????# | | ??????????????????????????# #?????????????# | | ??????????????????????????# #?????????????## | | ??????????????????????????# #??????????????# | | ????###????????#######????# #??????????????# | | ?####T####?????# ! #??### #??????????????# | | ?# ######## !#####!# ####+#?????????# | | ?# ! !% == =! #?????????# | | ?#=%# ####### ###### ###!#?????????# | | ?# !# #???##### #####?#== #?#%#?????????# | | ?# # #???#"""" """"#?## ##?# #?????????# | | ?##### ##???#"K "#??# #?# ########### | | ?????####????#""""Y""""#??# #?# | | ?????????????#""""Y""""#??# # | | ?????????????#" Y@E"#??####### #########+ | | ?????????????#"""" """"#????????# #???????# | | ?????????????###########????????# #???????# | | ????????????????????????????????# #???????# | | ????????????????????????????????# #?????### | | ????????????????????????????????# #????## | | ????????????????????????????????# #?#### | | ????????????????????????????????# #?#"" = | | ????????????????????????????????# #?#"! | | ???????????????????????????????? #?#"! | | ????????????????????????????????< #?#"! | | ???????????????????????????????? #?#"! | | ????????????????????????????????###??#"! | | ?????????????????????????????????????#"! | | ?????????????????????????????????????#"" | | ?????????????????????????????????????#"""!!!! | | ?????????????????????????????????????#""""""" | | ?????????????????????????????????????######## | | ????????????????????????????????????????????? | | ????????????????????????????????????????????? | | ????????????????????????????????????????????? | | ????????????????????????????????????????????? | | ????????????????????????????????????????????? | | ????????????????????????????????????????????? | | ????????????????????????????????????????????? | +----------------------------------------------------+ Best States ------------- Heat Dissipation 41 Energy Generation 16 Energy Capacity 800 Matter Stores 300 Matter Capacity 300 Sight Range 16 Robot Scan Range 14 Terrain Scan Density 85 Additional Mass Support 9 Utility Shielding 66 Evasion (%) 64 Melee Accuracy 8 Target Analysis 6 Recoil Reduction 1 Offensive Hacking 10 Relay Coupler Types 4 Relay Coupler Value 67 Item Schematics ----------------- Signal Interpreter | -10/Materials | Hacked Sensor Array | -10/Materials | Hacked Wheel | -9/Materials | Scanalyzed Rocket Launcher | -8/Materials | Scanalyzed Mni. Grenade Launcher | -8/Materials | Scanalyzed Imp. Flight Unit | -8/Materials | Scanalyzed Robot Schematics ------------------ None Fabricated ------------ Mni. Grenade Launcher | x1 | -6/Factory Alien Tech Used ----------------- None Achievements -------------- None Challenges ------------ None Game ------ Seed WeaponsNeutronTerrabomb Manual? 0 Play Time 00:31:44 Cumulative 728.5 hours Start 2024.05.11 @ 02:13:27 End 2024.05.11 @ 02:45:08 Sessions 1 Manual Loads 0 Difficulty Rogue Special Mode None Game No. 788 Rogue 513 Adventurer 123 Explorer 152 Win Type - Total 26 Types 20/0/4/1/0/0/0/1/0 Lore% 83 Gallery% 92 Achievement% 76 Wizard Run 0 Options --------- Layout 0 ASCII 0 Keyboard 1 Movement Numpad Keybinds 0 Fullscreen 2 Font 18/Terminus Map View 76x50 Zoom Use 0% Tactical HUD 1 Map Filters NONE Filters NONE Steam 1 RUN: b58c292a-8517-4c19-b2e5-9936f1426ceb